Cogmind - Beta 16 @@@ ROGUE MODE // 2025.11.23 @ 19:21:23 Player: Triffids Result: Self-destructed Performance ------------- Evolutions (3) 1500 Regions Visited (4) 800 Robots Destroyed (43) 215 Value Destroyed (1205) 1205 Prototype IDs (7) 140 Alien Tech Used (0) 0 Bonus (0) 0 TOTAL SCORE: 3860 Bonus ------- None Cogmind --------- Core Integrity 666/700 Matter 300/300 Energy 160/160 System Corruption 0% Temperature Cool (0) Movement Walking (120) Location -7/Factory Parts ------- > --- POWER (1) -------- Light Nuclear Core > --- PROPULSION (4) --- Aluminum Leg Aluminum Leg Aluminum Leg Carbon-fiber Leg > --- UTILITY (6) ------ Improved Heat Sink Medium Storage Unit Sensor Array Improved Signal Interpreter Improved Terrain Scan Processor Hacking Suite > --- WEAPON (2) ------- Particle Gun Ion Cannon > --- INVENTORY (10) --- Light Nuclear Core Aluminum Leg Carbon-fiber Leg Heat Sink Seismic Detector Target Analyzer Heavy Laser Rocket Launcher Rocket Launcher Mining Laser Peak State ------------ > --- POWER ------------ Light Nuclear Core > --- PROPULSION ------- Aluminum Leg Aluminum Leg Aluminum Leg Carbon-fiber Leg > --- UTILITY ---------- Improved Heat Sink Medium Storage Unit Sensor Array Improved Signal Interpreter Improved Terrain Scan Processor Hacking Suite > --- WEAPON ----------- Particle Gun Ion Cannon > --- INVENTORY -------- Light Nuclear Core Carbon-fiber Leg Heat Sink Seismic Detector Improved Medium Laser Heavy Laser Rocket Launcher Rocket Launcher Mining Laser [Rating: 30] Favorites ----------- Power Ion Engine Engine Ion Engine Power Core Light Nuclear Core Propulsion Aluminum Leg Leg Aluminum Leg Wheel Wheel Hover Unit Aerolev Unit Flight Unit Flight Unit Utility Small Storage Unit Device Seismic Detector Storage Small Storage Unit Processor Improved Signal Interpreter Hackware Hacking Suite Protection Light Armor Plating Weapon Improved EM Shotgun Energy Gun Improved EM Shotgun Energy Cannon Ion Cannon Ballistic Gun Assault Rifle Launcher Rocket Launcher Special Weapon Mining Laser Build | -11 -10 -9 -8 -7 ------- Run | Yrd Mat Mat Mat Fac Slots Evolved 6 | . . 2 2 2 Power . | . . . . . Propulsion 2 | . . 2 . . Utility 4 | . . . 2 2 Weapon . | . . . . . Parts Attached 48 | 8 2 11 21 6 Power 4 | 1 . . 3 . Engine 3 | 1 . . 2 . Core 1 | . . . 1 . Reactor . | . . . . . Propulsion 17 | 3 . 6 5 3 Treads . | . . . . . Leg 14 | 2 . 6 3 3 Wheel 1 | 1 . . . . Hover 1 | . . . 1 . Flight 1 | . . . 1 . Utility 15 | 2 . 3 7 3 Device 6 | 1 . . 4 1 Storage 2 | 1 . 1 . . Processor 3 | . . . 2 1 Hackware 2 | . . . 1 1 Protection 2 | . . 2 . . Artifact . | . . . . . Weapon 12 | 2 2 2 6 . Energy Gun 8 | 1 1 2 4 . Energy Cannon 1 | . . . 1 . Ballistic Gun 1 | 1 . . . . Ballistic Cannon . | . . . . . Launcher 1 | . . . 1 . Special Weapon 1 | . 1 . . . Impact Weapon . | . . . . . Slashing Weapon . | . . . . . Piercing Weapon . | . . . . . Special Melee Weapon . | . . . . . Unidentified Prototypes 2 | . . . 2 . Parts Lost 15 | . . . 13 2 Power 2 | . . . 2 . Propulsion 7 | . . . 6 1 Utility 3 | . . . 2 1 Weapon 3 | . . . 3 . Highest Loss Streak 11 | . . . 11 2 To Critical Strikes . | . . . . . Average Backups 7 | 4 7 7 7 8 Power . | 1 . . . 1 Propulsion . | . 1 . . . Utility 3 | . 2 4 2 2 Weapon 3 | 1 2 2 3 4 Tool/Special . | . . . . . Unused Backups 12 | . 3 3 3 3 Power 3 | . 1 . 1 1 Propulsion 3 | . 2 . 1 . Utility 1 | . . 1 . . Weapon 5 | . . 2 1 2 Tool/Special . | . . . . . Average Slot Usage (%) 94 | . 100 99 83 96 Engine 8 | . 14 11 6 . Core 1 | . . . . 7 Leg 31 | . 28 43 23 24 Flight 1 | . . . 2 4 Device 8 | . 14 3 8 15 Storage 10 | . 14 11 9 7 Processor 4 | . . . 8 11 Hackware 1 | . . . 1 7 Protection 3 | . . 7 4 . Energy Gun 14 | . 13 18 13 7 Energy Cannon 1 | . . . 2 7 Ballistic Gun 4 | . 14 3 . . Peak Build Rating 30 | 7 8 15 25 30 Average Rating 14 | 5 7 13 17 27 On Entrance 10 | . 7 8 14 25 Avg Prop Armor Cover (%) 6 | 31 . 9 3 2 Naked Turns . | . . . . . Heaviest Build 28 | 14 15 24 28 27 Greatest Support 45 | 20 20 40 35 45 Greatest Overweight (x) 4 | . . 1 4 1 Average Overweight (x) . | . . . . . Largest Inventory Capacity 10 | 8 8 10 10 10 Average Capacity 8 | 7 8 8 10 10 Most Carried 10 | 6 8 8 10 10 Average Carried 7 | 4 7 7 7 8 Final Capacity 10 | 8 8 10 10 10 Final Carried 10 | 5 8 8 9 10 Class Distribution -------------------- 49% | Mutant 46% | Scavenger-Mutant 4% | Scavenger-Skirmisher Dominant Class ---------------- Mutant | -10/Materials Scavenger-Mutant | -9/Materials Scavenger-Mutant | -8/Materials Scavenger-Mutant | -7/Factory Resources | -11 -10 -9 -8 -7 ----------- Run | Yrd Mat Mat Mat Fac Matter Collected 843 | 310 81 115 227 110 Remotely . | . . . . . Salvage Created 1556 | 116 163 537 556 184 Parts 90 | 11 13 31 23 12 Haulers Intercepted 2 | . . 1 1 . Recyclers Shooed 2 | 1 . 1 . . Parts Field Recycled . | . . . . . Retrieved Matter . | . . . . . Parts Self-Destructed . | . . . . . Prevented . | . . . . . Parts Restored . | . . . . . Kills | -11 -10 -9 -8 -7 ------- Run | Yrd Mat Mat Mat Fac Combat Hostiles Destroyed 33 | . 5 10 15 3 Guns 20 | . 5 5 10 . Cannons 3 | . . . . 3 AOE 8 | . . 5 3 . Classes Destroyed 11 | 1 3 4 2 1 Builder 1 | . . . . 1 Tunneler 5 | 5 . . . . Hauler 2 | . . 1 1 . Operator 1 | . 1 . . . Watcher 1 | . . 1 . . Swarmer 9 | . 3 . 6 . Grunt 17 | . 2 7 5 3 Brawler 1 | . . 1 . . Duelist 1 | . . . 1 . Sentry 4 | . . 2 2 . Hunter 1 | . . . 1 . Best Kill Streak 7 | 4 4 7 7 2 Combat Bots Only 7 | . 3 7 7 2 Max Kills in Single Turn 3 | 1 1 3 3 1 Gunslinging . | . . . . . Exploded 3 | . . 3 2 . Melee . | . . . . . Uniques/NPCs Destroyed . | . . . . . Combat | -11 -10 -9 -8 -7 -------- Run | Yrd Mat Mat Mat Fac Hostile Shots Fired 255 | . 20 63 155 17 Missed 92 | . 8 26 54 4 Hits 163 | . 12 37 101 13 Melee 4 | . . . 4 . Projectile 159 | . 12 37 97 13 Critical Strikes 2 | . . . 1 1 Damage Taken 2372 | . 111 528 1500 233 Core 696 | . 35 116 511 34 Absorbed by Shields . | . . . . . Core Remaining (%) 66 | 100 86 71 7 . Volleys Fired 121 | 10 20 23 58 10 Largest 2 | 2 2 2 2 2 Hottest 125 | 60 100 90 101 125 Shots Fired 201 | 20 39 46 76 20 Gun 187 | 20 38 46 73 10 Cannon 10 | . . . . 10 Launcher 2 | . . . 2 . Special 2 | . 1 . 1 . Kinetic 32 | 10 19 3 . . Thermal 87 | 10 8 . 49 20 Explosive 2 | . . . 2 . Electromagnetic 80 | . 12 43 25 . Robot Hit Streak 14 | 11 4 7 14 6 Robot Miss Streak 4 | 1 2 4 4 2 Penetration Max . | . . . . . Secondary Targets 2 | . . 1 1 . Max Gunslinging Chain 1 | . . 1 1 . Shots Hit Robots 148 | 15 19 41 59 14 Core Hits 74 | 5 8 27 27 7 Critical Kills . | . . . . . Critical Parts Destroyed . | . . . . . Critical Strikes 3 | . . . 3 . Burn 3 | . . . 3 . Melee Attacks . | . . . . . Impact . | . . . . . Slashing . | . . . . . Piercing . | . . . . . Sneak Attacks . | . . . . . Combat Hostiles . | . . . . . Follow-up Attacks . | . . . . . Damage Inflicted 2921 | 178 238 898 1336 271 Guns 2093 | 178 238 598 969 110 Cannons 161 | . . . . 161 Explosions 667 | . . 300 367 . Melee . | . . . . . Ramming . | . . . . . Kinetic 200 | 90 75 35 . . Thermal 1450 | 88 54 300 737 271 Explosive 283 | . . . 283 . Electromagnetic 988 | . 109 563 316 . Impact . | . . . . . Slashing . | . . . . . Piercing . | . . . . . Highest Corruption . | . . . . . Average Corruption . | . . . . . Corruption Purged . | . . . . . Corruption Blocked . | . . . . . Overload Shots . | . . . . . Overflow Damage . | . . . . . Projectiles . | . . . . . Explosions . | . . . . . Melee . | . . . . . Knockbacks . | . . . . . Impact . | . . . . . Kinetic . | . . . . . Secondary . | . . . . . Self-Inflicted Damage 90 | . . 49 41 . Shots 2 | . . 1 1 . Rammed . | . . . . . Targets Rammed . | . . . . . Kicked . | . . . . . Crushed . | . . . . . Highest Temperature 374 | . 20 374 201 189 Average Temperature 79 | . 11 130 64 58 Received Heat Transfer 882 | . 36 225 486 135 Effects 1 | . . 1 . . Shutdowns 1 | . . 1 . . Siege Activations . | . . . . . Martial Activations . | . . . . . Shielding Activations . | . . . . . Robots Disrupted . | . . . . . Combat Hostiles . | . . . . . Robots Corrupted 1 | . . . 1 . Combat Hostiles 1 | . . . 1 . Parts Fried 3 | . . 1 2 . Impact Corruptions . | . . . . . Robots Melted 1 | . . . 1 . Combat Hostiles 1 | . . . 1 . Parts Melted 4 | . . . 4 . Heat Transferred 2971 | 200 125 350 1778 518 Parts Sabotaged . | . . . . . Parts Stolen . | . . . . . Parts Stripped . | . . . . . Power Chain Reactions 6 | . . 4 2 . Alert | -11 -10 -9 -8 -7 ------- Run | Yrd Mat Mat Mat Fac Maximum Alert Level 1 | . . 1 1 . Low Security (%) 87 | 100 100 84 74 100 Level 1 12 | . . 15 25 . Level 2 . | . . . . . Level 3 . | . . . . . Level 4 . | . . . . . Level 5 . | . . . . . High Security . | . . . . . Max Security . | . . . . . Peak Influence 237 | 10 75 231 237 73 Initial 73 | . . . 57 73 Average 90 | 1 33 120 140 48 Influence Increases 1114 | 25 139 342 490 118 Destroy 0b10 Robot/C 660 | . 100 200 300 60 Destroy 0b10 Robot/NC 50 | 25 5 10 5 5 Destroy Leader 146 | . 10 54 72 10 Successful Hack 48 | . 9 13 14 12 Disable Machine 30 | . 15 . 15 . Destroy Structure 45 | . . 20 24 1 Lose Combat Pursuer 135 | . . 45 60 30 Influence Decreases 1073 | 25 139 205 464 240 Entered New Map 170 | . . . 80 90 Time Decay 753 | 25 139 205 254 130 Lost Part 150 | . . . 130 20 Squads Dispatched 3 | . 1 2 . . Investigation . | . . . . . Extermination . | . . . . . Reinforcement 3 | . 1 2 . . Assault . | . . . . . Garrison . | . . . . . Intercept . | . . . . . Searches Triggered . | . . . . . Construction Impeded . | . . . . . Haulers Reinforced . | . . . . . Active Scanning Responses . | . . . . . Cargo Convoy Interrupts . | . . . . . Stealth | -11 -10 -9 -8 -7 --------- Run | Yrd Mat Mat Mat Fac Distress Signals 4 | . . 2 2 . Communications Jammed . | . . . . . Distress Signals . | . . . . . Times Spotted 58 | . 8 21 25 4 Peak Tracking Total 12 | . 3 9 12 3 Tactical Retreats 4 | . . 1 2 1 Traps | -11 -10 -9 -8 -7 ------- Run | Yrd Mat Mat Mat Fac Traps Triggered . | . . . . . Indirectly . | . . . . . Trap Hack Attempts . | . . . . . Triggered . | . . . . . Disarmed . | . . . . . Reprogrammed . | . . . . . Reused . | . . . . . Traps Extracted . | . . . . . Installed . | . . . . . Triggered . | . . . . . Machines | -11 -10 -9 -8 -7 ---------- Run | Yrd Mat Mat Mat Fac Machines Disabled 2 | . 1 . 1 . Max in Single Turn 1 | . 1 . 1 . Machines Repaired . | . . . . . Machines Dismantled . | . . . . . Machines Sabotaged . | . . . . . Overloaded Fab Kills . | . . . . . Hacking | -11 -10 -9 -8 -7 --------- Run | Yrd Mat Mat Mat Fac Machines Accessed 13 | . 4 6 2 1 Terminals 12 | . 3 6 2 1 Fabricators . | . . . . . Repair Stations . | . . . . . Recycling Units 1 | . 1 . . . Scanalyzers . | . . . . . Garrison Access . | . . . . . Total Hacks 36 | . 8 19 6 3 Successful 20 | . 6 9 4 1 Failed 16 | . 2 10 2 2 Catastrophic 2 | . . 1 . 1 Database Lockouts . | . . . . . Manual 17 | . 4 12 . 1 Terminals 35 | . 7 19 6 3 Fabricators . | . . . . . Repair Stations . | . . . . . Recycling Units 1 | . 1 . . . Scanalyzers . | . . . . . Garrison Access . | . . . . . Terminal Hacks 14 | . 3 6 4 1 Robot Analysis 1 | . . 1 . . Prototype ID Bank 2 | . 1 1 . . Emergency Access Points 1 | . . . 1 . Terminal Index 3 | . 1 1 1 . Locate Traps 4 | . 1 1 1 1 Dispatch Records 1 | . . 1 . . Patrol Status 1 | . . . 1 . Hauler Manifests 1 | . . 1 . . Fabricator Hacks . | . . . . . Repair Station Hacks . | . . . . . Recycling Unit Hacks 1 | . 1 . . . Report Inventory 1 | . 1 . . . Scanalyzer . | . . . . . Garrison Access Hacks . | . . . . . Unauthorized Hacks 5 | . 2 3 . . Terminals 5 | . 2 3 . . Track 1 | . . 1 . . Botnet 4 | . 2 2 . . Fabricators . | . . . . . Repair Stations . | . . . . . Recycling Units . | . . . . . Scanalyzers . | . . . . . Garrison Access . | . . . . . Data Cores Recovered 1 | . 1 . . . Used 1 | . 1 . . . Hacking Detections 13 | . 4 6 2 1 Full Trace Events . | . . . . . Feedback Events . | . . . . . Feedback Blocked . | . . . . . Robot Schematics Acquired . | . . . . . Robots Built . | . . . . . Authchips . | . . . . . Time . | . . . . . Total Robot Build Rating . | . . . . . Part Schematics Acquired . | . . . . . Parts Built . | . . . . . Authchips . | . . . . . Time . | . . . . . Total Part Build Rating . | . . . . . Part Studies Acquired . | . . . . . Parts Repaired . | . . . . . Time . | . . . . . Parts Recycled . | . . . . . Recycled Matter . | . . . . . Retrieved Matter . | . . . . . Retrieved Components . | . . . . . Parts Scanalyzed . | . . . . . Part Schematics Acquired . | . . . . . Parts Damaged . | . . . . . Bothacking | -11 -10 -9 -8 -7 ------------ Run | Yrd Mat Mat Mat Fac Used RIF Installer . | . . . . . Robots Hacked . | . . . . . Non-combat . | . . . . . Combat . | . . . . . Robot Hacks Applied . | . . . . . Relay Couplers Released . | . . . . . Fabnet Peak Effective % . | . . . . . Robots Rewired . | . . . . . Allies Hacked . | . . . . . Hacks Repelled . | . . . . . Allies | -11 -10 -9 -8 -7 -------- Run | Yrd Mat Mat Mat Fac Total Allies . | . . . . . Largest Group . | . . . . . Highest-Rated Group . | . . . . . Highest-Rated Ally . | . . . . . Total Orders . | . . . . . Ally Attacks . | . . . . . Total Damage . | . . . . . Kills . | . . . . . Allies Corrupted . | . . . . . Allies Melted . | . . . . . Intel | -11 -10 -9 -8 -7 ------- Run | Yrd Mat Mat Mat Fac Active Infowar (turns) 1052 | 1 374 185 264 228 Sensors 492 | . . . 264 228 Terrain 62 | . . . . 62 Seismic 609 | 1 374 185 . 49 Robot Analysis Total 1 | . . 1 . . Derelict Logs Recovered . | . . . . . Drone Launches . | . . . . . Drone Recoveries . | . . . . . Exploration | -11 -10 -9 -8 -7 ------------- Run | Yrd Mat Mat Mat Fac Turns Passed 1947 | 147 374 614 550 262 Spaces Moved 1141 | 93 201 426 264 157 Core 22 | 17 . . 5 . Treads . | . . . . . Legs 1119 | 76 201 426 259 157 Wheels . | . . . . . Hover . | . . . . . Flight . | . . . . . Fastest Speed 50 | 50 120 120 120 120 Average Speed 122 | 107 120 120 133 122 Slowest Speed 260 | 120 120 190 260 190 Overloaded Moves . | . . . . . Propulsion Burnouts . | . . . . . Robots Hopped . | . . . . . Potential Cave-ins . | . . . . . Cave-ins Triggered . | . . . . . Exploration Rate (%) 21 | 5 37 39 23 4 Regions Visited 4 Branch Regions . Pre-discovered Areas . | . . . . . Known Exits Taken 1 | . . . 1 . Unknown Exits Taken 3 | 1 1 1 . . Scrap Searched . | . . . . . Spaces Dug . | . . . . . Terrain Destroyed 39 | . . 17 22 . Melee . | . . . . . Projectile . | . . . . . AOE 39 | . . 17 22 . Terrain Rammed . | . . . . . Walls Destroyed . | . . . . . Machines Disabled . | . . . . . Actions | -11 -10 -9 -8 -7 --------- Run | Yrd Mat Mat Mat Fac Total 1482 | 118 294 487 375 208 Wait 108 | . 60 11 16 21 Move 1137 | 92 200 425 263 157 Hop . | . . . . . Pick Up 36 | 8 7 6 10 5 Fast Attach 15 | 4 . . 9 2 Attach 16 | 3 . 2 6 5 Detach 3 | . . . . 3 Swap 25 | 1 3 9 10 2 Drop 21 | . 4 11 3 3 Fire 121 | 10 20 23 58 10 Melee . | . . . . . Ram . | . . . . . Kick . | . . . . . Crush . | . . . . . Escape Stasis . | . . . . . Rewire . | . . . . . Trap . | . . . . . Miscellaneous . | . . . . . Route ------- -11/Scrapyard -10/Materials -9/Materials -8/Materials -7/Factory History --------- Turn | Location | Event 15 | -11/Scrapyard | Discovered new exit (range 15) 148 | -11/Scrapyard | Entered Materials 326 | -10/Materials | Build established: Mutant 505 | -10/Materials | Discovered new exit (range 3) 522 | -10/Materials | Entered another Materials area 522 | -9/Materials | Evolved 2 slots: Propulsion x2 761 | -9/Materials | Destroyed 7 combat bots 1053 | -9/Materials | Build established: Scavenger-Mutant 1127 | -9/Materials | Discovered new exit (range 8) 1136 | -9/Materials | Entered another Materials area 1136 | -8/Materials | Evolved 2 slots: Utility x2 1437 | -8/Materials | Core integrity fell below 50% 1464 | -8/Materials | Destroyed 7 combat bots 1466 | -8/Materials | Core integrity fell below 20% 1494 | -8/Materials | Lost 11 parts (2p4n2u3w) 1668 | -8/Materials | Discovered new exit (range 16) 1684 | -8/Materials | Identified exit to Factory 1686 | -8/Materials | Entered Factory 1686 | -7/Factory | Evolved 2 slots: Utility x2 1948 | -7/Factory | Self-destructed Last Messages --------------- 01881_ T-07 Excavator is excavating. 01881_ Acquired 38 matter. 01882_ U-05 Engineer lays Concrete. 01885_ Acquired Aluminum Leg. 01892_ K-01 Serf collects debris. 01893_ G-50 Soldier destroyed. 01894_ T-07 Excavator is excavating. 01896_ U-05 Engineer lays Concrete. 01898_ Acquired 24 matter. 01902_ Acquired 10 matter. 01906_ Acquired Hvy. Laser. 01915_ T-07 Excavator is excavating. 01926_ K-01 Serf collects debris. 01929_ Acquired 10 matter. 01939_ Dropped Aluminum Leg. 01940_ Acquired Aluminum Leg. 01941_ Dropped Imp. Medium Laser. 01941_ Acquired Imp. Medium Laser. 01942_ Dropped Imp. Medium Laser. 01946_ Acquired Target Analyzer. Map ----- +----------------------------------------------------+ | ????????????????????????????????????????????# | | ????????????????????????????????????????????# """ | | ????????????????????????????????????????????# """ | | ????????????????????????????????????????????# """ | | ????????????????????????????????????????????# | | ????????????????????????????????????????????# """ | | ????????????????????????????????????????????# """ | | ????????????????????????????????????????????# """ | | ????????????????????????????????????????????# | | ????????????????????????????????????????????# | | ????????????????????????????????????????????# | | ????????????????????????????????????????????# | | ??????????????????????????????+?????????????###### | | ?????????????????????????????? ???############## | | ?????????????????????????????? #??# # | | ?????????????????????????????? #??# = # | | ?????????????????????????????? #??# # | | ?????????????????????????????? #??# # | | ?????????????????????????????? ##?# """ """ # | | ???????????????????#+#+###???# #??# """ """ # | | ???????????????????# #???# #??# """ """ # | | ???????????????????# ##### #??# + | | ???????????????????+ #??# """ """ %# | | ???????????????????# #??# """ """ *# | | ???????????????????# [ ! #?## """ """ # | | ???????????????????# @! ! #??# ! # | | ???????????????????# ############+#### | | ???????????????????# !!! | | ???????????????????# k!! % | | ???????????????????# """ !! | | ???????????????????# """ t | | ???????????????????# """ | | ???????????????????# ##### ###### T#### | | ???????????????????# """ """ #?# #???######? | | ??????????????????? """ """ #? ###??#?????# | | ??????????????????? ?""" """ # #####?#?????? | | ?????????????????? ?? # ??????##???#? | | ?????????????????? ?? # #????#??#????? | | ??????????????????? ??u?! ## #???????#?????? | | ????????????????????????############??#???#??#?##? | | ?????????????????????????????????#????#??##?##???? | | ?????????????????????????????????????????????????? | | ?????????????????????????????????????????????????? | | ?????????????????????????????????????????????????? | | ?????????????????????????????????????????????????? | | ?????????????????????????????????????????????????? | | ?????????????????????????????????????????????????? | | ?????????????????????????????????????????????????? | | ?????????????????????????????????????????????????? | | ?????????????????????????????????????????????????? | +----------------------------------------------------+ Best States ------------- Heat Dissipation 55 Energy Generation 14 Energy Capacity 265 Matter Stores 300 Matter Capacity 300 Sight Range 16 Robot Scan Range 15 Terrain Scan Range 14 Terrain Scan Density 110 Armor Coverage 225 Evasion (%) 55 Offensive Hacking 10 Defensive Hacking 10 Item Schematics ----------------- None Robot Schematics ------------------ None Fabricated ------------ Nothing Repaired ---------- Nothing Studied --------- None Alien Tech Used ----------------- None Achievements -------------- None Challenges ------------ None Game ------ Seed EtherialLargeScythe Manual? 0 Play Time 00:27:08 Cumulative 244.0 hours Start 2025.11.23 @ 13:49:33 End 2025.11.23 @ 19:21:23 Sessions 3 Manual Loads 0 Difficulty Rogue Special Mode None Game No. 455 Rogue 455 Adventurer 0 Explorer 0 Win Type - Total 1 Types 1/0/0/0/0/0/0/0/0/0 Lore% 30 Gallery% 47 Achievement% 25 Wizard Run 0 Options --------- Layout 1 ASCII 0 Keyboard 1 Movement Vi Keybinds 0 Fullscreen 0 Font 20/Smallcaps Map View 59x39 Zoom Use 0% Tactical HUD 1 Map Filters NONE Filters NONE Steam 1 RUN: ef0970fc-8132-489a-b1b5-6af89e1c402f